bitfinex-derivatives/quotes_BTCF0:USTF0_20241223
["timestamp","ask_amount","ask_price","bid_price","bid_amount"]
[1734919778051,0.3608,94368.0,94367.0,0.05303]
[1734919778648,0.3608,94368.0,94358.0,0.01592]
[1734919778851,0.3608,94359.0,94351.0,0.00944878]
[1734919779045,0.3608,94359.0,94353.0,0.05312813]
[1734919779046,0.3608,94357.0,94353.0,0.05312813]
[1734919779460,0.3608,94357.0,94355.0,0.053036]
[1734919779859,0.3608,94357.0,94354.0,1.5]
[1734919780058,0.3608,94357.0,94330.0,0.1018]
[1734919780359,0.3608,94357.0,94315.0,0.18690648]
[1734919780360,0.3608,94331.0,94329.0,0.053051]
[1734919780549,0.36140001,94338.0,94337.0,0.053047]
[1734919780754,0.3608,94338.0,94337.0,0.053047]
[1734919783054,0.3608,94338.0,94337.0,0.17066168]
[1734919783255,0.3608,94338.0,94337.0,0.053047]
[1734919783451,0.3608,94338.0,94337.0,1.553047]
[1734919785451,0.36136001,94352.0,94337.0,1.553047]
[1734919785659,0.3608,94369.0,94368.0,0.053029]
[1734919786359,0.3608,94369.0,94368.0,1.553029]
[1734919787967,0.3608,94369.0,94368.0,1.56265313]
[1734919791667,0.3608,94369.0,94357.0,0.053035]
[1734919791872,0.3608,94358.0,94357.0,0.053035]
[1734919792858,0.3608,94358.0,94357.0,0.06285726]
[1734919794172,0.3608,94358.0,94357.0,1.56285726]
[1734919795276,0.3608,94358.0,94347.0,0.0015898]
[1734919795277,0.3608,94358.0,94347.0,0.0546308]
[1734919795470,0.3608,94349.0,94347.0,0.0015898]
[1734919795676,0.41384,94349.0,94347.0,0.0015898]
[1734919795977,0.3608,94349.0,94338.0,1.5]
[1734919796170,0.3608,94339.0,94330.0,8.953e-05]
[1734919796497,0.3608,94331.0,94330.0,8.953e-05]
[1734919796670,0.3608,94331.0,94330.0,1.50008953]
[1734919798374,0.3608,94331.0,94330.0,8.953e-05]
[1734919798574,0.41394879,94331.0,94330.0,8.953e-05]
[1734919799666,0.41394879,94331.0,94307.0,0.053063]
[1734919799973,0.3608,94313.0,94300.0,0.1]
[1734919800165,0.3608,94301.0,94300.0,0.1]
[1734919800372,0.3608,94301.0,94300.0,1.6]
[1734919800876,0.3608,94301.0,94300.0,0.1]
[1734919802475,0.3608,94301.0,94292.0,0.053071]
[1734919802776,0.3608,94293.0,94291.0,1.5006]
[1734919802966,0.053072,94292.0,94291.0,1.5]
[1734919803163,0.053077,94283.0,94261.0,0.053089]
[1734919803367,0.3608,94281.0,94267.0,0.053086]
[1734919803573,0.3608,94281.0,94268.0,1.5]
[1734919804066,0.6608,94281.0,94245.0,0.01592]
[1734919804266,8.084e-05,94292.0,94194.0,0.5763]
[1734919804267,0.3608,94251.0,94232.0,0.00159173]
[1734919804473,0.3608,94251.0,94250.0,0.053095]
[1734919805377,0.36144,94262.0,94261.0,0.053089]
[1734919805569,0.36136001,94271.0,94263.0,0.053088]
[1734919805769,0.3608,94271.0,94263.0,0.053088]
[1734919806275,0.3608,94271.0,94251.0,0.1053]
[1734919806464,0.3608,94262.0,94251.0,0.1053]
[1734919806668,0.3608,94262.0,94260.0,0.05309]
[1734919806868,0.36144,94271.0,94270.0,0.053084]
[1734919807075,0.3608,94271.0,94270.0,0.053084]
[1734919808184,0.36136001,94288.0,94287.0,0.053075]
[1734919808375,0.3608,94288.0,94287.0,0.053075]
[1734919809081,0.3608,94288.0,94279.0,0.209]
[1734919809382,0.3608,94288.0,94287.0,0.053075]
[1734919809777,0.3608,94288.0,94287.0,1.553075]
[1734919810175,0.3608,94288.0,94287.0,1.5]
[1734919811576,0.053076,94285.0,94269.0,0.053085]
[1734919811876,0.3608,94270.0,94269.0,0.06309902]
[1734919812080,0.3608,94270.0,94269.0,1.5]
[1734919812476,0.3608,94270.0,94269.0,1.553085]
[1734919812672,0.3608,94279.0,94269.0,1.5]
[1734919812872,0.3608,94279.0,94269.0,1.66197506]
[1734919813084,0.3608,94270.0,94269.0,1.553085]
[1734919815681,0.3608,94270.0,94269.0,1.66383671]
[1734919815885,0.3608,94270.0,94269.0,1.553085]
[1734919816880,0.3608,94270.0,94269.0,1.66917942]
[1734919817772,0.3608,94270.0,94269.0,1.68509942]
[1734919817976,0.3608,94270.0,94269.0,1.553085]
[1734919819787,0.36136001,94279.0,94269.0,1.5]
[1734919819991,0.3608,94279.0,94274.0,0.053082]
[1734919821481,0.3608,94279.0,94274.0,0.06316735]
[1734919822075,8.084e-05,94292.0,94274.0,0.37088535]
[1734919822280,0.09444477,94292.0,94290.0,0.053073]
[1734919822487,0.09376392,94292.0,94290.0,0.053073]
[1734919822680,0.09376392,94292.0,94291.0,1.5]
[1734919822875,0.09376392,94292.0,94291.0,1.8608]
[1734919823082,0.09376392,94292.0,94291.0,1.5]
[1734919823284,0.12590663,94296.0,94291.0,1.5]
[1734919823591,0.15840822,94302.0,94291.0,1.5]
[1734919823592,8.496e-05,94292.0,94291.0,1.553073]
[1734919825881,8.496e-05,94292.0,94291.0,1.56294504]
[1734919826885,8.496e-05,94292.0,94291.0,1.67441164]
[1734919828189,0.36088496,94292.0,94291.0,0.00987204]
[1734919828491,0.36088496,94292.0,94278.0,0.05308]
[1734919828699,0.3608,94284.0,94278.0,0.05308]
[1734919828880,0.3608,94279.0,94275.0,0.18690648]
[1734919829380,0.3608,94279.0,94265.0,0.01592]
[1734919829381,0.3608,94279.0,94267.0,0.00977459]
[1734919829582,0.3608,94268.0,94261.0,0.18690648]
[1734919829784,0.3608,94267.0,94261.0,0.18690648]
[1734919829987,0.053089,94263.0,94261.0,0.18690648]
[1734919830387,0.053092,94257.0,94256.0,0.25158031]
[1734919830588,0.413892,94257.0,94256.0,0.25158031]
[1734919830790,0.053095,94251.0,94232.0,0.18907222]
[1734919830983,0.3608,94241.0,94240.0,1.500128]
[1734919831886,0.3608,94241.0,94240.0,0.000128]
[1734919832079,0.36152387,94257.0,94244.0,0.053099]
[1734919832285,0.36152387,94257.0,94240.0,0.000128]
[1734919832286,0.36092386,94257.0,94240.0,0.000128]
[1734919832481,0.36092386,94257.0,94234.0,0.00983637]
[1734919832482,0.05432592,94241.0,94234.0,0.00983637]
[1734919832686,0.05432592,94241.0,94230.0,0.16225145]
[1734919832687,0.05432592,94241.0,94240.0,0.053101]
[1734919833188,0.05432592,94241.0,94220.0,0.3608]
[1734919833189,0.413901,94241.0,94220.0,0.3608]
[1734919833396,0.3608,94229.0,94223.0,0.053111]
[1734919834094,0.36136001,94241.0,94235.0,0.053104]
[1734919834293,0.12676372,94237.0,94235.0,0.053104]
[1734919835892,0.36144,94241.0,94240.0,0.053101]
[1734919836089,0.3608,94241.0,94232.0,0.3608]
[1734919836285,0.3608,94233.0,94223.0,0.053111]
[1734919836488,0.3608,94233.0,94232.0,1.5]
[1734919837298,0.3608,94241.0,94232.0,1.5]
[1734919837596,0.053101,94240.0,94232.0,1.5]
[1734919837890,0.3608,94241.0,94216.0,0.001592]
[1734919837891,0.3608,94233.0,94216.0,0.001592]
[1734919838096,0.3608,94217.0,94216.0,0.001592]
[1734919838897,0.053106,94232.0,94216.0,0.001592]
[1734919838898,0.3608,94224.0,94216.0,0.001592]
[1734919839296,0.3608,94224.0,94213.0,0.00011202]
[1734919839597,0.3608,94214.0,94200.0,0.1]
[1734919839796,0.3608,94202.0,94200.0,0.1]
[1734919840186,0.053123,94201.0,94200.0,0.1]
[1734919840394,0.3,94201.0,94182.0,0.3608]
[1734919840601,0.3608,94187.0,94174.0,0.00159263]
[1734919840784,0.3608,94179.0,94174.0,0.00159263]
[1734919841195,0.36090222,94179.0,94174.0,0.00159263]
[1734919842191,0.36090222,94179.0,94174.0,0.05473063]
[1734919842396,0.36090222,94179.0,94174.0,0.00159263]
[1734919842700,0.36090222,94179.0,94176.0,0.0485471]
[1734919843103,0.36090222,94179.0,94178.0,1.5]
[1734919846399,0.00010222,94179.0,94178.0,1.553136]
[1734919846587,0.00010222,94179.0,94178.0,1.67558369]
[1734919846794,0.00010222,94179.0,94178.0,1.553136]
[1734919848700,0.3608,94200.0,94178.0,1.5]
[1734919848903,0.3608,94192.0,94185.0,0.053132]
[1734919849099,0.3608,94192.0,94177.0,0.3608]
[1734919849294,0.3608,94183.0,94174.0,0.00159263]
[1734919849496,9.262e-05,94182.0,94174.0,0.00159263]
[1734919849696,9.262e-05,94182.0,94181.0,0.3608]
[1734919850001,9.262e-05,94182.0,94181.0,1.8608]
[1734919850500,9.262e-05,94182.0,94181.0,1.5]
[1734919853505,9.262e-05,94182.0,94181.0,1.553135]
[1734919853805,9.262e-05,94182.0,94181.0,1.5]
[1734919857304,9.262e-05,94182.0,94175.0,0.3608]
[1734919858297,9.262e-05,94182.0,94178.0,0.053136]
[1734919858505,9.262e-05,94182.0,94181.0,0.053135]
[1734919859202,9.262e-05,94182.0,94181.0,1.553135]
[1734919860003,9.262e-05,94182.0,94181.0,1.5]
[1734919860203,0.36089262,94182.0,94181.0,1.5]
[1734919860706,9.262e-05,94182.0,94181.0,1.5]
[1734919861102,0.36089262,94182.0,94181.0,1.5]
[1734919861299,0.36089262,94182.0,94174.0,0.00159263]
[1734919861502,0.053135,94181.0,94174.0,0.00159263]
[1734919861801,0.053138,94175.0,94174.0,0.00159263]
[1734919862306,0.05314,94173.0,94166.0,0.3608]
[1734919862506,0.05314,94173.0,94167.0,1.5]
[1734919862707,0.1098,94181.0,94167.0,1.5]
[1734919862708,0.05314,94171.0,94167.0,1.5]
[1734919862907,0.053142,94168.0,94167.0,1.5]
[1734919863314,0.3608,94171.0,94160.0,0.00012035]
[1734919863608,0.413946,94161.0,94160.0,0.00012035]
[1734919865713,0.05315,94155.0,94145.0,0.053155]
[1734919866018,0.3608,94147.0,94145.0,0.053155]
[1734919866405,0.3608,94147.0,94145.0,0.069115]
[1734919866706,0.36136001,94161.0,94145.0,0.069115]
[1734919866707,0.3608,94151.0,94147.0,0.053154]
[1734919867107,0.3608,94151.0,94143.0,1.50098]
[1734919867405,0.3608,94151.0,94143.0,1.50038]
[1734919867803,0.3608,94151.0,94143.0,0.00038]
[1734919868000,0.3608,94151.0,94095.0,0.36718047]
[1734919868001,7.608e-05,94150.0,94112.0,0.3608]
[1734919868209,7.608e-05,94150.0,94095.0,0.31559149]
[1734919868210,0.053164,94129.0,94110.0,0.01014854]
[1734919868516,0.3608,94117.0,94113.0,0.053173]
[1734919869012,0.3608,94117.0,94101.0,0.31399747]
[1734919869217,0.3608,94109.0,94101.0,0.31399747]
[1734919869606,0.3608,94109.0,94100.0,0.1]
[1734919871808,0.12683052,94104.0,94100.0,0.1]
[1734919872609,0.3608,94101.0,94100.0,0.1]
[1734919873110,0.3608,94101.0,94070.0,0.00159445]
[1734919873111,0.67078702,94101.0,94070.0,0.00159445]
[1734919873317,0.3608,94079.0,94070.0,0.00159445]
[1734919873819,0.3608,94079.0,94078.0,1.50009185]
[1734919874005,0.3608,94079.0,94055.0,0.3608]
[1734919874204,0.3608,94061.0,94049.0,0.053209]
[1734919874413,0.3608,94051.0,94050.0,1.5]
[1734919875008,0.36088022,94051.0,94050.0,1.5]
[1734919875311,0.36088022,94051.0,94036.0,0.37076881]
[1734919875312,8.022e-05,94051.0,94049.0,0.053209]
[1734919875619,0.3608,94050.0,94049.0,0.053209]
[1734919875807,8.022e-05,94051.0,94049.0,0.053209]
[1734919876921,8.022e-05,94051.0,94041.0,0.053214]
[1734919877119,0.16265679,94051.0,94041.0,0.053214]
[1734919877917,0.16265679,94051.0,94037.0,1.5006]
[1734919878220,0.16265679,94051.0,94037.0,1.5]
[1734919878611,8.022e-05,94051.0,94038.0,0.053215]
[1734919878813,8.022e-05,94051.0,94037.0,1.5006]
[1734919879020,8.022e-05,94051.0,94040.0,0.053214]
[1734919880509,8.022e-05,94051.0,94037.0,1.340995]
[1734919880722,8.022e-05,94051.0,94047.0,0.3608]
[1734919880909,0.3608,94072.0,94047.0,0.3608]
[1734919881111,0.3608,94072.0,94060.0,0.16257657]
[1734919881317,0.48819053,94081.0,94060.0,0.16257657]
[1734919881318,0.36136001,94081.0,94067.0,0.053199]
[1734919881518,0.3608,94081.0,94070.0,0.16257657]
[1734919881717,0.3608,94081.0,94073.0,0.053195]
[1734919881912,0.00013321,94080.0,94068.0,0.3608]
[1734919882125,0.3608,94073.0,94065.0,1.5006]
[1734919882312,0.3608,94073.0,94065.0,1.5]
[1734919882712,0.3608,94073.0,94068.0,0.053198]
[1734919882927,0.3608,94073.0,94065.0,1.5006]
[1734919883217,0.3608,94073.0,94065.0,1.5]
[1734919883419,0.3608,94073.0,94066.0,0.0532]
[1734919883727,0.00013321,94080.0,94077.0,0.053193]
[1734919884024,0.00013321,94080.0,94077.0,0.413993]
[1734919884219,0.00013321,94080.0,94077.0,0.053193]
[1734919884816,0.00013321,94080.0,94077.0,0.06339296]
[1734919885121,0.00013321,94080.0,94077.0,0.053193]
[1734919885920,0.00013321,94080.0,94079.0,0.053192]
[1734919886531,0.00013321,94080.0,94079.0,0.413992]
[1734919886923,0.00159541,94083.0,94079.0,1.8608]
[1734919887227,0.0285,102070.0,94095.0,0.053183]
[1734919887228,0.00159465,94112.0,94095.0,0.053183]
[1734919887424,0.00159465,94112.0,94100.0,0.16257657]
[1734919887627,0.00159465,94112.0,94104.0,0.053178]
[1734919887926,0.00013199,94111.0,94104.0,0.053178]
[1734919888128,0.00013199,94111.0,94106.0,0.053177]
[1734919888727,0.00013199,94111.0,94101.0,0.4654]
[1734919889122,0.3608,94105.0,94090.0,0.16257657]
[1734919889518,0.3608,94105.0,94090.0,0.21576257]
[1734919890220,0.3608,94105.0,94090.0,0.053186]
[1734919890426,0.3608,94105.0,94090.0,0.21576257]
[1734919890822,0.37106681,94105.0,94090.0,0.21576257]
[1734919891024,0.37106681,94105.0,94092.0,0.053185]
[1734919892519,0.3608,94097.0,94092.0,0.053185]
[1734919893523,0.3608,94097.0,94096.0,0.053183]
[1734919896133,0.3608,94097.0,94087.0,0.3608]
[1734919896327,0.3608,94097.0,94083.0,0.053189]
[1734919896820,0.3608,94089.0,94080.0,0.106]
[1734919897021,0.3608,94089.0,94079.0,1.5006]
[1734919897226,0.413992,94080.0,94077.0,0.01003784]
[1734919897629,0.413992,94080.0,94065.0,1.5]
[1734919898133,0.413992,94080.0,94075.0,0.053194]
[1734919898134,0.3608,94080.0,94075.0,0.053194]
[1734919898635,0.3608,94080.0,94068.0,0.053199]
[1734919899026,0.12683052,94074.0,94068.0,0.053199]
[1734919899222,0.12683052,94074.0,94065.0,1.50064]
[1734919899435,0.12683052,94074.0,94065.0,1.5]
[1734919899633,0.3608,94072.0,94065.0,1.5]
[1734919900534,0.12683052,94068.0,94065.0,1.5]
[1734919900729,0.00011409,94067.0,94065.0,1.5]
[1734919901126,0.00011409,94067.0,94065.0,1.5532]
[1734919903235,0.00011409,94067.0,94065.0,0.0532]
[1734919903633,0.00011409,94067.0,94066.0,1.5]
[1734919906532,0.00011409,94067.0,94061.0,0.01010813]
[1734919906740,0.00011409,94067.0,94060.0,0.053203]
[1734919906931,0.00011409,94067.0,94051.0,0.053208]
[1734919907134,0.05331309,94067.0,94059.0,1.5]
[1734919907337,0.3608,94064.0,94059.0,1.5]
[1734919907840,0.3608,94064.0,94049.0,0.1]
[1734919908032,0.3608,94064.0,94047.0,0.12086]
[1734919908228,0.51933815,94064.0,94047.0,0.12086]
[1734919908432,0.51933815,94064.0,94050.0,1.5]
[1734919909052,0.3608,94053.0,94050.0,1.5]
[1734919910040,0.3608,94053.0,94044.0,0.01041252]
[1734919910241,0.3608,94053.0,94043.0,0.053212]
[1734919910440,0.3608,94053.0,94032.0,0.203]
[1734919910441,0.05321,94048.0,94034.0,0.053217]
[1734919910648,0.3608,94045.0,94035.0,1.5]
[1734919911047,0.053212,94044.0,94035.0,1.5]
[1734919911243,0.053213,94043.0,94035.0,1.5]
[1734919912745,0.12703769,94041.0,94035.0,1.5]
[1734919912943,0.053215,94039.0,94035.0,1.5]
[1734919913147,0.3608,94036.0,94035.0,1.5]
[1734919916052,0.3608,94036.0,94035.0,1.553217]
[1734919917543,0.3608,94036.0,94035.0,1.5]
[1734919919042,0.12703769,94047.0,94046.0,0.053211]
[1734919919748,0.12703769,94047.0,94046.0,1.5]
[1734919920148,0.12703769,94047.0,94046.0,1.553211]
[1734919920449,0.36144,94052.0,94046.0,1.5]
[1734919920450,0.00064,94052.0,94046.0,1.5]
[1734919920649,0.15853815,94054.0,94051.0,0.3608]
[1734919920850,0.15853815,94054.0,94052.0,0.053207]
[1734919921047,0.16865296,94070.0,94056.0,0.053205]
[1734919921249,0.16865296,94070.0,94060.0,0.3608]
[1734919922244,0.01022751,94070.0,94060.0,0.3608]
[1734919922642,0.01022751,94070.0,94051.0,0.3608]
[1734919922857,0.053204,94060.0,94051.0,0.3608]
[1734919923551,0.053204,94058.0,94051.0,0.3608]
[1734919924243,0.36136001,94065.0,94051.0,0.3608]
[1734919924551,0.3608,94065.0,94046.0,0.0006]
[1734919924850,0.053208,94052.0,94040.0,0.16257657]
[1734919925043,0.053209,94051.0,94041.0,1.5]
[1734919925244,0.053214,94042.0,94036.0,0.3608]
[1734919925456,0.053214,94042.0,94036.0,0.0102027]
[1734919925649,0.053214,94042.0,94032.0,1.75099319]
[1734919926662,0.053214,94042.0,94032.0,1.5]
[1734919927152,0.36136001,94049.0,94032.0,1.5]
[1734919927355,0.05322,94031.0,94022.0,0.37676]
[1734919927943,0.3608,94041.0,94025.0,1.5]
[1734919928143,0.3608,94041.0,94017.0,0.26695319]
[1734919928144,0.053222,94026.0,94017.0,0.25099319]
[1734919928355,0.3608,94025.0,94017.0,0.26128559]
[1734919928655,0.3608,94025.0,94022.0,1.5]
[1734919928855,0.053224,94024.0,94022.0,1.5006]
[1734919929059,0.053224,94024.0,94022.0,1.5]
[1734919932359,0.053224,94024.0,94012.0,0.05323]
[1734919932360,0.053225,94022.0,94010.0,0.3608]
[1734919932751,0.053225,94022.0,94011.0,1.5]
[1734919933353,0.01008115,94024.0,94011.0,1.5]
[1734919933662,0.36144,94025.0,94011.0,1.5]
[1734919933861,0.3608,94025.0,94011.0,1.5]
[1734919934161,0.36144,94033.0,94029.0,0.05322]
[1734919934463,0.053213,94043.0,94027.0,0.053222]
[1734919934765,0.00060001,94044.0,94038.0,0.053216]
[1734919934952,0.18756193,94048.0,94039.0,0.3608]
[1734919935151,0.18756193,94048.0,94046.0,0.053211]
[1734919935347,0.1045,94066.0,94039.0,0.48069746]
[1734919935348,0.36136001,94068.0,94047.0,0.3608]
[1734919935552,0.36136001,94068.0,94058.0,0.053204]
[1734919935962,0.3608,94068.0,94058.0,0.053204]
[1734919936263,9.185e-05,94067.0,94065.0,0.414]
[1734919936455,0.22119294,94082.0,94078.0,0.053193]
[1734919936656,0.22119294,94082.0,94074.0,0.053195]
[1734919937158,0.36140001,94088.0,94081.0,0.053191]
[1734919937359,0.36140001,94088.0,94073.0,0.3608]
[1734919937360,0.00060001,94088.0,94087.0,0.053188]
[1734919937563,0.00010902,94088.0,94087.0,0.053188]
[1734919937754,0.00010902,94088.0,94087.0,0.069148]
[1734919938360,0.22119294,94109.0,94087.0,1.8]
[1734919938560,0.22119294,94109.0,94103.0,0.053179]
[1734919938860,0.36144,94117.0,94103.0,0.053179]
[1734919939069,0.3608,94117.0,94107.0,0.16257657]
[1734919939262,0.3608,94116.0,94103.0,0.053179]
[1734919939470,0.00012052,94115.0,94100.0,0.16257657]
[1734919939654,0.3608,94106.0,94094.0,0.00012076]
[1734919940260,0.05318,94102.0,94094.0,0.00012076]
[1734919940558,0.3608,94098.0,94094.0,0.00012076]
[1734919940763,0.00012052,94115.0,94097.0,0.7216]
[1734919940962,0.3608,94136.0,94097.0,0.7216]
[1734919940963,0.3608,94136.0,94108.0,0.3608]
[1734919941160,0.3608,94136.0,94124.0,0.053167]
[1734919941357,0.3608,94145.0,94128.0,0.053165]
[1734919941665,0.3608,94145.0,94130.0,0.053163]
[1734919942054,0.00012175,94133.0,94130.0,0.053163]
[1734919942468,0.00012175,94133.0,94116.0,0.3608]
[1734919942760,0.053165,94128.0,94116.0,0.3608]
[1734919942961,0.3608,94124.0,94110.0,0.16257657]
[1734919943164,0.3608,94124.0,94110.0,0.17287735]
[1734919943351,0.3608,94124.0,94111.0,0.1168972]
[1734919943872,0.053173,94113.0,94102.0,0.25099319]
[1734919944057,0.3608,94103.0,94102.0,0.25099319]
[1734919944565,0.3608,94103.0,94084.0,0.01198407]
[1734919945364,0.3608,94103.0,94090.0,0.16257657]
[1734919946466,0.3608,94103.0,94093.0,0.3608]
[1734919947053,0.3608,94103.0,94101.0,0.05318]
[1734919947559,0.36136001,94116.0,94101.0,0.05318]
[1734919947759,0.3608,94116.0,94101.0,0.05318]
[1734919949471,0.3608,94116.0,94107.0,0.053176]
[1734919949664,0.1012,94123.0,94107.0,0.053176]
[1734919949865,0.1012,94123.0,94108.0,1.5]
[1734919950172,0.1012,94123.0,94110.0,0.16257657]
[1734919950368,0.1012,94123.0,94108.0,0.0006]
[1734919950565,0.1012,94123.0,94101.0,0.3608]
[1734919950959,0.1012,94123.0,94102.0,1.5]
[1734919951774,0.1012,94123.0,94101.0,0.3608]
[1734919951775,0.3608,94110.0,94101.0,0.3608]
[1734919951974,0.053171,94117.0,94101.0,0.3608]
[1734919952175,0.053171,94117.0,94101.0,1.8608]
[1734919952372,0.053171,94117.0,94101.0,1.5]
[1734919952581,0.053178,94104.0,94082.0,0.05319]
[1734919952870,0.3608,94108.0,94082.0,0.05319]
[1734919953076,0.053177,94107.0,94095.0,1.5]
[1734919953569,0.3608,94100.0,94095.0,1.5]
[1734919956878,0.3608,94100.0,93693.0,0.13020403]
[1734919956879,0.053183,94095.0,94072.0,0.053196]
[1734919957273,0.053183,94095.0,94074.0,0.053195]
[1734919957676,0.053183,94095.0,94077.0,0.01054148]
[1734919957874,0.053183,94095.0,94081.0,0.01596]
[1734919958079,0.3608,94112.0,94095.0,0.053183]
[1734919958283,0.3608,94112.0,94104.0,0.053178]
[1734919958678,0.3608,94112.0,94095.0,0.01596]
[1734919959178,0.3608,94112.0,94098.0,0.053181]
[1734919959983,0.3608,94112.0,94105.0,1.5]
[1734919960486,0.3608,94112.0,94098.0,0.053181]
[1734919960683,0.3608,94104.0,94094.0,0.00012076]
[1734919960983,0.3608,94104.0,94095.0,1.5]
[1734919962486,0.3608,94112.0,94097.0,0.053182]
[1734919962693,0.3608,94112.0,94095.0,1.5006]
[1734919962979,0.4554101,94125.0,94100.0,0.52337657]
[1734919963382,0.4554101,94125.0,94110.0,0.16257657]
[1734919963577,0.4554101,94125.0,94123.0,0.053167]
[1734919964184,0.3608,94125.0,94117.0,0.3608]
[1734919964481,0.3608,94125.0,94094.0,0.19802076]
[1734919964482,0.053175,94109.0,94095.0,1.50064]
[1734919964684,0.053179,94103.0,94095.0,1.5]
[1734919964878,0.053179,94103.0,94094.0,0.00012076]
[1734919965087,0.053181,94100.0,94094.0,0.00012076]
[1734919965477,0.0937,94108.0,94094.0,0.00012076]
[1734919965478,0.053182,94097.0,94094.0,0.00012076]
[1734919965978,0.3608,94101.0,94094.0,0.00012076]
[1734919967088,0.0946101,94100.0,94094.0,0.00012076]
[1734919967289,0.053181,94099.0,94094.0,0.00012076]
[1734919968290,0.0946101,94096.0,94094.0,0.00012076]
[1734919968990,0.1477931,94096.0,94094.0,0.00012076]
[1734919969388,0.09473905,94095.0,94094.0,0.00012076]
[1734919970789,0.053188,94087.0,94084.0,0.00159409]
[1734919970991,0.3608,94085.0,94084.0,0.00159409]
[1734919972388,0.09531306,94086.0,94085.0,0.053189]
[1734919972588,0.09531306,94086.0,94085.0,0.606689]
[1734919972787,0.09531306,94086.0,94085.0,2.36446826]
[1734919973494,0.09531306,94099.0,94085.0,2.61127926]
[1734919973694,0.09531306,94099.0,94098.0,0.053182]
[1734919974489,0.09544309,94099.0,94098.0,0.0924103]
[1734919974691,0.00013003,94099.0,94098.0,0.28038915]
[1734919974892,0.00013003,94099.0,94098.0,1.78038915]
[1734919975192,0.00013003,94099.0,94098.0,1.89397445]
[1734919975988,0.00013003,94099.0,94098.0,1.7059956]
[1734919976286,0.09531306,94117.0,94098.0,1.6528136]
[1734919976483,0.09531306,94117.0,94100.0,0.16257657]
[1734919976786,0.09531306,94117.0,94109.0,0.053175]
[1734919977205,0.09531306,94120.0,94109.0,0.053175]
[1734919977899,0.09531306,94120.0,94110.0,0.01596]
[1734919978088,0.25788963,94120.0,94110.0,0.01596]
[1734919978291,0.3608,94118.0,94106.0,0.18986645]
[1734919978486,0.3608,94108.0,94106.0,0.18986645]
[1734919978699,0.413976,94108.0,94106.0,0.03316645]
[1734919978890,0.053179,94102.0,94101.0,0.25099319]
[1734919979596,0.1588551,94104.0,94085.0,0.3608]
[1734919979798,0.053184,94095.0,94085.0,0.3608]
[1734919979999,0.3608,94086.0,94084.0,0.00159409]
[1734919980306,0.413989,94086.0,94084.0,0.00159409]
[1734919982300,0.45615101,94085.0,94084.0,0.00159409]
[1734919983103,0.45615101,94085.0,94061.0,0.25099319]
[1734919983299,0.3608,94065.0,94061.0,0.25099319]
[1734919983492,0.053202,94063.0,94061.0,0.25099319]
[1734919983894,0.053202,94063.0,94061.0,0.09429319]
[1734919984108,0.3608,94065.0,94055.0,0.31399747]
[1734919984302,0.414004,94058.0,94055.0,0.31399747]
[1734919985100,0.414004,94058.0,94042.0,0.053213]
[1734919986201,0.54089948,94058.0,94036.0,1.8572]
[1734919987706,0.414004,94058.0,94036.0,1.8572]
[1734919987898,0.053209,94050.0,94036.0,1.8572]
[1734919988103,0.3608,94045.0,94036.0,1.8572]
[1734919988599,0.3608,94045.0,94036.0,0.3572]
[1734919988906,0.00012902,94044.0,94036.0,0.3572]
[1734919989108,0.00012902,94044.0,94043.0,1.5]
[1734919990496,0.08119292,94044.0,94043.0,1.5]
[1734919991299,0.23392524,94068.0,94057.0,0.053205]
[1734919991602,0.23392524,94068.0,94060.0,0.3608]
[1734919991801,0.23392524,94068.0,94063.0,0.053201]
[1734919992202,0.23392524,94068.0,94063.0,0.414001]
[1734919992507,0.15815451,94064.0,94063.0,0.3608]
[1734919993398,0.15815451,94069.0,94063.0,0.3608]
[1734919993797,0.15815451,94069.0,94067.0,0.053199]
[1734919994006,0.3608,94086.0,94064.0,0.28292441]
[1734919994204,0.3608,94097.0,94077.0,0.053193]
[1734919994512,0.413982,94097.0,94077.0,0.053193]
[1734919994807,0.413982,94097.0,94078.0,1.5]
[1734919995396,0.413982,94097.0,94081.0,0.3608]
[1734919995800,0.413982,94097.0,94078.0,1.5006]
[1734919995995,0.413982,94097.0,94081.0,0.3608]
[1734919996207,0.413982,94097.0,94078.0,1.5006]
[1734919996402,0.3608,94097.0,94078.0,1.5]
[1734919996604,0.3608,94081.0,94064.0,0.0962]
[1734919996810,0.3608,94081.0,94063.0,0.053201]
[1734919997202,0.3608,94081.0,94065.0,1.5]
[1734919997610,0.3608,94081.0,94067.0,0.053199]
[1734919998309,0.01067892,94086.0,94067.0,0.053199]
[1734919998612,0.3608,94089.0,94068.0,0.01596]
[1734919999011,0.053188,94086.0,94068.0,0.01596]
[1734919999513,0.1266359,94069.0,94068.0,0.01596]
[1734920000217,0.053188,94087.0,94069.0,0.053198]
[1734920000417,0.053188,94087.0,94070.0,0.053197]
[1734920000606,0.36136001,94089.0,94074.0,0.053195]
[1734920000806,0.3608,94089.0,94079.0,0.16257657]
[1734920001219,0.00159496,94104.0,94085.0,0.26208326]
[1734920001509,0.00159496,94104.0,94102.0,0.053179]
[1734920001707,0.3608,94121.0,94094.0,0.16257657]
[1734920001908,0.22119294,94127.0,94110.0,0.16257657]
[1734920002307,0.3608,94121.0,94110.0,0.16257657]
[1734920002510,0.3608,94121.0,94117.0,0.053171]
[1734920002706,0.3608,94121.0,94110.0,0.16257657]
[1734920002707,0.36144,94129.0,94118.0,1.5]
[1734920002912,0.3608,94129.0,94128.0,0.053165]
[1734920003115,0.3608,94141.0,94128.0,0.053165]
[1734920003312,0.61359193,94160.0,94138.0,0.053159]
[1734920003313,0.61419194,94160.0,94138.0,0.053159]
[1734920003514,0.36140001,94160.0,94139.0,0.16257657]
[1734920003709,0.3608,94160.0,94134.0,0.3608]
[1734920003906,0.3608,94160.0,94130.0,0.21573957]
[1734920004113,0.3608,94160.0,94135.0,0.11746793]
[1734920004319,0.3608,94160.0,94131.0,0.11954166]